bitfinex/quotes_ETHUSD_20251015
["timestamp","ask_amount","ask_price","bid_price","bid_amount"]
[1760540688430,2.49155212,4013.6,4012.2,0.631]
[1760540688631,0.1394,4013.7,4012.1,0.2335]
[1760540688632,0.1394,4013.7,4012.1,2.8945]
[1760540688923,0.001,4013.8,4012.2,0.46122398]
[1760540689112,0.001,4013.8,4013.0,2.49186164]
[1760540689308,0.001,4013.8,4012.2,0.4363]
[1760540689620,0.001,4013.8,4012.8,2.49197067]
[1760540689925,0.001,4013.8,4012.3,0.6336]
[1760540690144,0.001,4013.8,4013.7,2.72496672]
[1760540690514,0.001,4013.8,4013.7,3.16126672]
[1760540690846,0.001,4013.8,4013.7,5.82126672]
[1760540691039,0.001,4013.8,4013.7,3.16126672]
[1760540691544,0.001,4013.8,4013.7,5.82126672]
[1760540692143,0.001,4013.8,4013.7,3.16126672]
[1760540692346,0.001,4013.8,4013.7,5.82126672]
[1760540692645,0.001,4013.8,4013.7,3.16126672]
[1760540692951,0.001,4013.8,4013.7,5.82126672]
[1760540693246,0.001,4013.8,4013.7,3.28526672]
[1760540693811,0.001,4013.8,4013.7,5.96918138]
[1760540694011,0.001,4013.8,4013.7,5.94426672]
[1760540694312,0.001,4013.8,4013.7,4.13134045]
[1760540694518,0.001,4013.8,4013.7,6.79034045]
[1760540694713,0.001,4013.8,4013.7,5.82026672]
[1760540695154,0.6,4015.0,4014.2,2.49115639]
[1760540695447,0.6,4015.0,4014.7,2.49084614]
[1760540696028,0.6,4015.0,4014.7,2.659]
[1760540696355,0.6,4015.0,4014.7,5.14984614]
[1760540696524,0.6,4015.0,4014.7,2.49084614]
[1760540696851,0.6,4015.0,4014.6,5.14989836]
[1760540697027,0.6,4015.0,4014.5,2.49095685]
[1760540697346,0.6,4015.0,4014.6,2.658]
[1760540697546,0.6,4015.0,4014.7,2.49084614]
[1760540697765,0.6,4015.0,4014.7,5.14884614]
[1760540697964,0.6,4015.0,4014.7,2.96084614]
[1760540698266,0.6,4015.0,4014.7,5.61884614]
[1760540698572,0.6,4015.0,4014.7,4.40542081]
[1760540698748,0.6,4015.0,4014.7,7.06342081]
[1760540698949,0.001,4015.3,4015.2,2.49053596]
[1760540699141,0.001,4015.3,4015.2,5.78213596]
[1760540699342,0.001,4015.3,4015.2,3.59413596]
[1760540699539,0.001,4015.3,4015.2,5.31904161]
[1760540699871,0.001,4015.3,4015.2,5.95264161]
[1760540700170,0.001,4015.3,4015.2,5.31904161]
[1760540700337,0.001,4015.3,4014.5,0.6903]
[1760540700544,0.001,4015.3,4015.2,2.49053596]
[1760540700741,0.001,4015.3,4015.2,5.14853596]
[1760540700945,0.001,4015.3,4013.2,2.49176911]
[1760540701260,0.1004,4015.2,4013.5,2.49158853]
[1760540701448,0.1004,4015.1,4012.9,2.49193889]
[1760540701648,0.1004,4015.0,4013.1,2.657]
[1760540701838,0.3104,4014.9,4012.4,0.13034]
[1760540702039,0.6336,4014.7,4012.4,0.13034]
[1760540702234,6.32218827,4013.8,4012.0,0.122]
[1760540702471,6.32218827,4013.8,4011.0,2.71343037]
[1760540702472,0.1354,4012.1,4010.5,2.49342417]
[1760540702646,0.1354,4012.1,4010.6,0.47]
[1760540703046,0.1354,4012.1,4008.3,0.4992136]
[1760540703047,5.317984,4012.0,4009.9,0.6903]
[1760540703247,0.1022,4012.0,4010.5,2.49340011]
[1760540703453,0.1022,4012.0,4010.5,2.99215132]
[1760540703648,0.2078,4010.6,4006.0,0.72694879]
[1760540703849,0.3121,4010.6,4008.5,0.2203]
[1760540704047,0.2078,4010.6,4008.6,0.47]
[1760540704345,0.2078,4010.6,4009.8,2.49383394]
[1760540704552,0.2078,4010.6,4008.9,2.49444984]
[1760540704553,0.2078,4010.6,4009.9,2.49378344]
[1760540704772,0.2078,4010.6,4010.0,0.124]
[1760540704940,0.1043,4011.3,4009.9,0.49877581]
[1760540704941,0.3308,4011.1,4010.4,0.124]
[1760540705156,0.1043,4011.3,4011.2,2.49301954]
[1760540705157,0.124,4011.3,4011.2,2.49301954]
[1760540705490,0.124,4011.9,4011.3,2.49295391]
[1760540705786,0.3121,4011.8,4009.4,2.1705]
[1760540706089,0.3121,4011.8,4009.9,4.22182777]
[1760540706274,0.3121,4011.8,4009.5,0.93099753]
[1760540706275,0.2131,4011.8,4009.5,0.93099753]
[1760540706482,0.2131,4011.8,4010.6,2.49337662]
[1760540706483,0.099,4011.7,4010.6,2.49337662]
[1760540706792,0.2131,4011.8,4010.1,0.2269]
[1760540707153,0.2131,4011.8,4010.8,2.49325709]
[1760540707357,0.099,4011.7,4010.5,2.658]
[1760540707570,0.2123,4011.8,4011.1,2.49303744]
[1760540707767,0.099,4012.2,4011.6,2.49271532]
[1760540707968,0.099,4012.2,4011.1,0.25130374]
[1760540708156,0.1005,4012.3,4011.1,0.25130374]
[1760540708374,0.1005,4012.2,4011.1,0.002]
[1760540709392,0.135,4012.4,4011.1,0.002]
[1760540709593,0.135,4012.4,4011.9,2.49255551]
[1760540709770,0.1005,4012.3,4011.6,2.49273749]
[1760540709969,0.2101,4011.7,4011.1,0.002]
[1760540710387,0.135,4012.4,4011.2,2.49301252]
[1760540710606,0.1026,4012.9,4011.3,0.27443082]
[1760540710901,0.209,4015.0,4011.4,0.4425]
[1760540711067,0.209,4015.0,4012.9,2.49190333]
[1760540711068,0.104,4014.2,4012.9,2.49190333]
[1760540711269,0.104,4014.2,4011.5,1.75292833]
[1760540711270,0.209,4015.0,4013.0,0.02491901]
[1760540711460,0.1053,4014.7,4013.7,2.49146672]
[1760540711665,0.001,4014.7,4013.7,2.51638138]
[1760540711880,0.001,4014.7,4013.7,3.45967491]
[1760540712077,0.001,4014.7,4013.7,3.43476025]
[1760540712568,0.001,4014.7,4013.7,6.09276025]
[1760540713019,0.001,4014.7,4013.7,3.43476025]
[1760540714005,0.001,4014.7,4013.7,2.99226025]
[1760540715012,0.001,4014.7,4013.7,6.09176025]
[1760540715229,0.001,4014.7,4013.7,5.16276025]
[1760540715385,0.001,4014.7,4013.7,7.81976025]
[1760540715583,0.001,4014.7,4013.7,5.79636025]
[1760540715784,1e-08,4014.7,4014.6,2.49090818]
[1760540716096,1e-08,4014.7,4014.6,2.863999]
[1760540716294,1e-08,4014.7,4014.6,5.520999]
[1760540716499,1e-08,4014.7,4014.6,4.467999]
[1760540716826,1e-08,4014.7,4013.8,4.21939938]
[1760540717112,1e-08,4014.7,4013.7,0.50079353]
[1760540717314,1e-08,4014.7,4014.5,2.49096951]
[1760540717527,1e-08,4014.7,4014.5,5.14795985]
[1760540717820,1e-08,4014.7,4014.5,2.657]
[1760540718119,1e-08,4014.7,4014.6,2.49090818]
[1760540718284,1e-08,4014.7,4014.6,5.14790818]
[1760540718485,1e-08,4014.7,4014.6,2.49090818]
[1760540718926,1e-08,4014.7,4014.5,2.6819097]
[1760540719224,1e-08,4014.7,4014.6,2.51581726]
[1760540719526,1e-08,4014.7,4014.6,0.02490908]
[1760540719728,1e-08,4014.7,4014.1,2.657]
[1760540719895,1e-08,4014.7,4013.6,1.728]
[1760540720082,1e-08,4014.7,4013.8,1.728]
[1760540720313,1e-08,4014.7,4013.7,2.66425947]
[1760540720314,1e-08,4014.7,4013.7,2.66424809]
[1760540720508,1e-08,4014.7,4013.7,0.1728]
[1760540720810,1e-08,4014.7,4012.4,1.3489]
[1760540720811,0.1351,4013.8,4012.4,1.3489]
[1760540721016,0.1351,4013.8,4012.5,1.903]
[1760540721240,0.1351,4013.8,4013.2,2.49172371]
[1760540721414,0.2366,4013.8,4011.9,2.49258456]
[1760540721764,0.7351,4013.7,4012.0,0.31619846]
[1760540721922,0.1373,4012.1,4011.1,0.002]
[1760540722112,0.1015,4013.6,4011.3,2.49295739]
[1760540722307,0.1373,4014.0,4013.1,2.49177932]
[1760540722643,0.1373,4014.0,4013.0,2.656]
[1760540722827,0.1373,4014.0,4013.5,2.49158991]
[1760540723029,0.1373,4014.0,4012.1,0.2269]
[1760540723230,0.1022,4013.9,4012.1,0.42239]
[1760540723428,0.1022,4013.9,4011.6,2.49277096]
[1760540723646,0.1022,4013.9,4010.3,0.002]
[1760540723647,0.1373,4014.0,4011.8,0.6336]
[1760540723975,0.1022,4014.6,4014.0,2.49122686]
[1760540724150,0.1022,4014.6,4013.3,0.2269]
[1760540724354,1e-08,4014.7,4014.2,2.49114311]
[1760540724538,1e-08,4014.7,4013.4,2.49165296]
[1760540724745,1e-08,4014.7,4013.5,0.2718553]
[1760540725126,1e-08,4014.7,4013.6,2.49150554]
[1760540725326,1e-08,4014.7,4014.3,2.49108524]
[1760540725527,1e-08,4014.7,4013.5,0.2718553]
[1760540725739,1e-08,4014.7,4014.0,0.002]
[1760540726445,0.124,4014.4,4014.0,0.002]
[1760540726649,0.124,4014.4,4014.1,2.49120803]
[1760540726846,1e-08,4014.7,4014.0,0.002]
[1760540727167,0.124,4014.3,4014.0,0.002]
[1760540727511,1e-08,4014.7,4014.0,0.002]
[1760540727800,1e-08,4014.7,4014.2,0.124]
[1760540728078,1e-08,4014.7,4014.1,0.2269]
[1760540728079,1e-08,4014.7,4014.6,2.61490818]
[1760540728285,1e-08,4014.7,4014.6,5.27090818]
[1760540728645,1e-08,4014.7,4014.6,0.124]
[1760540729278,0.22640001,4014.7,4014.1,0.124]
[1760540729595,2.3616,4014.6,4014.0,0.002]
[1760540729762,4.85281845,4014.1,4014.0,0.002]
[1760540729966,4.85281845,4014.1,4013.1,0.002]
[1760540729967,0.6336,4013.8,4013.1,0.002]
[1760540730172,0.1364,4013.2,4013.1,0.002]
[1760540730689,3.36077713,4013.2,4013.1,0.002]
[1760540730857,5.08877713,4013.2,4013.1,0.002]
[1760540731053,8.33686713,4013.2,4013.1,0.002]
[1760540731400,8.04831313,4013.2,4013.1,0.002]
[1760540732104,14.74959013,4013.2,4013.1,0.002]
[1760540732403,12.01809013,4013.2,4013.1,0.002]
[1760540732983,17.48259613,4013.2,4013.1,0.002]
[1760540733290,11.11371713,4013.2,4013.1,0.002]
[1760540733694,5.08797713,4013.2,4013.1,0.002]
[1760540734274,2.5962,4013.2,4013.1,0.002]
[1760540734484,13.46902613,4013.2,4013.1,0.002]
[1760540734701,5.08797713,4013.2,4013.1,0.002]
[1760540734868,20.25688013,4013.2,4013.1,0.002]
[1760540735304,7.65358713,4013.2,4013.1,0.002]
[1760540735701,20.56034013,4013.2,4013.1,0.002]
[1760540736547,9.25005113,4013.2,4013.1,0.002]
[1760540736717,5.08797713,4013.2,4013.1,0.002]
[1760540737034,35.08797713,4013.2,4013.1,0.002]
[1760540737181,5.08797713,4013.2,4013.1,0.002]
[1760540737387,1e-08,4014.7,4013.1,0.002]
[1760540737686,0.0997,4014.5,4013.1,0.002]
[1760540737891,4.59835598,4014.6,4013.2,0.2138]
[1760540738120,1e-08,4014.7,4013.6,2.49147145]
[1760540738280,1e-08,4014.7,4013.3,0.4289]
[1760540738712,1e-08,4014.7,4013.4,0.02491652]
[1760540738913,1e-08,4014.7,4014.6,0.2138]
[1760540739117,1e-08,4014.7,4014.6,2.70470818]
[1760540739290,0.001,4015.2,4015.1,2.49059799]
[1760540739593,0.001,4015.2,4015.1,0.124]
[1760540739920,0.125,4015.2,4014.2,0.6427]
[1760540740125,0.001,4015.2,4014.3,2.91999433]
[1760540740287,0.001,4015.2,4014.4,2.49103228]
[1760540740615,0.001,4015.2,4014.5,0.0249097]
[1760540740930,0.001,4015.2,4014.4,0.4289]
[1760540741134,0.001,4015.2,4014.5,0.0249097]
[1760540741299,0.125,4015.2,4014.7,2.49079388]
[1760540741621,0.001,4015.2,4014.7,0.51057645]
[1760540741827,0.001,4015.2,4015.0,0.124]
[1760540742319,0.125,4015.2,4014.6,0.124]
[1760540742614,0.125,4015.2,4014.8,2.49075376]
[1760540742849,0.125,4015.2,4014.9,0.4289]
[1760540743049,0.001,4015.2,4015.0,0.4289]
[1760540743352,0.001,4015.2,4014.2,2.70490453]
[1760540743353,0.001,4015.2,4015.1,2.91949799]
[1760540743649,0.001,4015.2,4015.1,3.46051647]
[1760540743851,0.001,4015.2,4014.5,0.4289]
[1760540744154,0.001,4015.2,4015.1,2.49059799]
[1760540744549,0.001,4015.2,4015.1,5.57549799]
[1760540744853,0.001,4015.2,4015.1,2.91949799]
[1760540745052,0.001,4015.2,4015.1,0.4289]
[1760540745221,0.001,4015.2,4014.5,0.4289]
[1760540745421,0.001,4015.2,4014.2,0.2138]
[1760540745819,0.001,4015.2,4014.3,2.49108762]
[1760540746252,0.001,4015.2,4014.4,2.49102646]
[1760540746465,0.001,4015.2,4014.2,3.0399258]
[1760540746648,0.001,4015.2,4014.4,2.49097344]
[1760540746950,0.001,4015.2,4014.3,0.4289]
[1760540747544,0.001,4015.2,4014.1,0.002]
[1760540747854,2.49061145,4015.1,4014.1,0.002]
[1760540748035,0.001,4015.2,4014.1,2.49320227]
[1760540748234,0.6336,4015.1,4014.1,0.002]
[1760540748746,0.001,4015.2,4015.1,2.49059799]
[1760540748921,2.920237,4015.1,4014.1,0.002]
[1760540749257,5.02495639,4014.2,4014.1,0.002]
[1760540749553,11.38062039,4014.2,4014.1,0.001]
[1760540749760,5.12545639,4014.2,4014.1,0.001]
[1760540749946,2.5338,4014.2,4014.1,0.001]
[1760540750356,2.6343,4014.2,4014.1,0.001]
[1760540750558,2.5338,4014.2,4014.1,0.001]
[1760540750975,9.06275339,4014.2,4014.1,0.001]
[1760540751175,5.12545639,4014.2,4014.1,0.001]
[1760540751344,8.14990239,4014.2,4014.1,0.001]
[1760540752186,35.12545639,4014.2,4014.1,0.001]
[1760540752338,2.5338,4014.2,4014.1,0.001]
[1760540752541,1.728,4014.2,4014.1,0.001]
[1760540752752,0.1715,4014.6,4014.1,0.001]
[1760540753081,0.6336,4014.4,4014.1,0.001]
[1760540753237,0.6336,4014.2,4014.1,0.001]
[1760540753441,2.59228638,4014.4,4014.1,0.001]
[1760540753643,6.59452639,4014.2,4014.1,0.001]
[1760540753853,7.79740239,4014.2,4014.1,0.001]
[1760540754463,7.79660239,4014.2,4014.1,0.001]
[1760540754666,27.42276539,4014.2,4014.1,0.001]
[1760540754868,27.15688839,4014.2,4014.1,0.001]
[1760540755675,34.95315639,4014.2,4014.1,0.001]
[1760540756277,33.12500465,4013.8,4013.7,1e-08]
[1760540756476,34.85300465,4013.8,4013.7,1e-08]
[1760540756675,34.95450465,4013.8,4013.7,1e-08]
[1760540756886,34.32090465,4013.8,4013.7,1e-08]
[1760540757047,4.85300465,4013.8,4013.7,1e-08]
[1760540757252,8.47138665,4013.8,4013.7,1e-08]
[1760540757452,4.85300465,4013.8,4013.7,1e-08]
[1760540758188,2.85065,4014.5,4013.7,1e-08]
[1760540758486,2.49090818,4014.6,4013.7,1e-08]
[1760540758688,5.406898,4015.1,4013.7,0.43520001]
[1760540758883,2.951586,4015.0,4013.7,0.43520001]
[1760540759085,2.49077637,4014.9,4013.7,0.43520001]
[1760540759292,0.001,4015.3,4013.7,0.97703539]
[1760540759454,6.950137,4015.1,4013.7,0.97703539]
[1760540759650,2.527446,4015.0,4013.7,0.43520001]
[1760540759854,0.001,4015.3,4013.7,0.43520001]
[1760540760083,1.728,4015.0,4013.7,0.43520001]
[1760540760252,2.49082858,4014.8,4013.7,0.43520001]
[1760540760456,2.49082858,4014.8,4013.7,1e-08]
[1760540760457,2.49129637,4014.0,4013.7,1e-08]
[1760540760697,0.6336,4014.2,4013.7,1e-08]
[1760540760853,2.3616,4014.5,4013.7,1e-08]
[1760540761208,0.6336,4014.8,4014.1,0.2225]
[1760540761353,1.728,4014.8,4014.1,0.2225]
[1760540761566,0.6336,4014.7,4014.1,0.2225]
[1760540761895,0.6336,4015.1,4014.1,0.2225]
[1760540762103,0.001,4014.2,4014.1,0.2225]
[1760540762403,0.001,4014.2,4013.7,1e-08]
[1760540762560,0.001,4014.2,4014.1,0.2225]
[1760540762756,0.001,4014.2,4013.7,1e-08]
[1760540763002,0.001,4014.2,4013.7,0.43520001]
[1760540763604,0.001,4014.2,4013.7,1e-08]
[1760540763757,0.001,4014.2,4013.8,0.4352]
[1760540763956,0.001,4014.2,4014.1,0.2225]
[1760540764157,0.001,4014.2,4014.1,3.14891845]
[1760540764391,0.001,4015.2,4014.1,0.97259185]
[1760540764593,0.001,4015.2,4015.1,2.71309799]
[1760540764899,0.001,4015.7,4015.5,2.49034989]
[1760540765093,0.1358,4017.6,4015.6,2.51519074]
[1760540765415,0.2372,4017.8,4015.2,0.4352]
[1760540765619,0.1365,4017.8,4015.2,0.4352]
[1760540765818,0.1785,4016.7,4015.2,0.4352]
[1760540765989,2.3616,4015.8,4015.1,0.2225]
[1760540766189,2.49014968,4015.9,4014.6,0.4697]
[1760540766394,0.6336,4015.8,4014.7,0.2283]
[1760540766790,2.3616,4015.6,4014.7,0.2283]
[1760540766992,4.85202092,4015.4,4014.3,0.2283]
[1760540767216,0.6336,4015.4,4014.3,0.2283]
[1760540767512,2.49033167,4015.6,4014.3,0.2283]
[1760540767715,0.6336,4015.5,4014.4,0.4697]
[1760540767916,0.001,4016.1,4014.5,0.0249097]
[1760540768120,0.001,4016.1,4014.8,2.49074439]
[1760540768459,0.001,4016.1,4015.5,2.49029458]
[1760540768781,0.6336,4015.8,4014.4,0.4697]
[1760540768891,1.728,4015.7,4014.4,0.4697]
[1760540769216,0.6336,4015.7,4014.5,2.49095833]
[1760540769419,0.6336,4015.8,4014.5,2.49095833]
[1760540770304,0.6336,4015.7,4014.4,2.96072272]
[1760540770519,2.3616,4015.9,4014.5,2.49096876]
[1760540770697,0.001,4016.1,4014.6,0.4697]
[1760540770897,0.001,4016.1,4014.8,2.49078409]
[1760540771093,0.001,4016.1,4014.6,0.4697]
[1760540771294,2.49011075,4015.9,4014.6,0.4697]
[1760540771487,0.6336,4015.7,4014.7,0.02490846]
[1760540771708,0.6336,4015.7,4014.6,0.4697]
[1760540771895,0.6336,4015.9,4014.6,0.4697]
[1760540772095,1.728,4016.0,4014.6,0.4697]
[1760540772096,0.6336,4016.0,4014.6,0.4697]
[1760540772296,0.001,4016.1,4014.6,0.4697]
[1760540772490,0.001,4016.1,4014.6,2.9347]
[1760540772688,0.001,4016.1,4014.7,0.54256314]
[1760540772911,0.001,4016.1,4014.9,2.49066185]
[1760540773109,0.001,4016.1,4014.9,2.49066836]
[1760540773320,0.001,4016.1,4015.0,0.4697]
[1760540773499,0.001,4016.1,4016.0,2.49003984]
[1760540773890,0.001,4016.1,4016.0,2.95973984]
[1760540774398,0.001,4016.1,4016.0,3.52962652]
[1760540774598,0.001,4016.1,4016.0,6.18362652]
[1760540774921,0.125,4017.5,4017.4,2.4891721]
[1760540775126,0.001,4017.5,4017.4,2.4891721]
[1760540775431,0.124,4017.4,4016.9,0.2283]
[1760540775722,0.124,4017.1,4016.9,2.71776866]
[1760540776029,0.001,4017.5,4017.4,2.4891721]
[1760540776659,0.001,4017.5,4017.4,2.9588721]
[1760540776932,0.001,4017.5,4014.4,1.122]
[1760540777116,4.85085068,4017.3,4016.0,0.4697]
[1760540777297,4.21730472,4017.2,4016.0,0.4697]
[1760540777505,2.48929602,4017.2,4016.0,0.4697]
[1760540777824,0.6336,4017.3,4016.0,0.4697]
[1760540777996,4.21723974,4017.3,4016.1,2.48996281]
[1760540778325,0.001,4017.5,4016.2,3.1227]
[1760540778524,0.001,4017.5,4016.2,0.4697]
[1760540778926,0.001,4017.5,4016.6,2.48964996]
[1760540779096,0.001,4017.5,4016.5,2.48971908]
[1760540779292,0.001,4017.5,4016.5,2.48968203]
[1760540779500,0.001,4017.5,4016.4,5.14277341]
[1760540779727,0.001,4017.5,4016.8,2.48954229]
[1760540779894,0.001,4017.5,4017.1,2.48932869]
[1760540780111,0.001,4017.5,4017.4,2.4891721]
[1760540780544,0.001,4017.5,4017.4,2.9588721]
[1760540780765,0.001,4017.5,4016.8,0.4697]
[1760540780991,0.001,4017.5,4017.2,2.48929458]
[1760540781268,0.001,4017.5,4017.4,2.4891721]
[1760540781465,0.001,4017.5,4017.2,2.652]
[1760540781640,0.001,4017.5,4016.9,2.48943143]
[1760540781834,0.001,4017.5,4016.1,2.48993102]
[1760540781835,0.001,4017.5,4016.6,4.21766753]
[1760540782035,0.001,4017.5,4017.4,2.4891721]
[1760540782467,0.001,4017.5,4016.6,0.46873675]
[1760540782773,0.001,4017.5,4017.4,2.4891721]
[1760540783270,0.001,4017.5,4017.4,2.98376382]
[1760540783433,0.001,4017.5,4017.4,2.9588721]
[1760540783771,0.001,4017.5,4017.4,5.6108721]
[1760540783937,0.001,4017.5,4017.4,2.9588721]
[1760540784268,0.001,4017.5,4017.4,3.25475931]
[1760540784436,0.001,4017.5,4017.4,5.00765103]
[1760540784634,0.001,4017.5,4017.4,7.63475931]
[1760540785344,1e-08,4018.0,4017.9,4.85046234]
[1760540785669,0.001,4018.4,4018.3,4.21661458]
[1760540785840,0.175,4021.0,4020.1,2.48746546]
[1760540786042,0.175,4021.0,4019.7,0.2283]
[1760540786443,0.175,4021.0,4019.8,2.652]
[1760540786745,0.124,4019.7,4018.7,2.652]
[1760540786941,0.124,4019.7,4018.9,0.124]
[1760540787164,0.124,4019.7,4019.0,5.13918113]
[1760540787372,0.1026,4019.8,4018.2,0.2283]
[1760540787636,0.1354,4019.9,4018.3,0.49458614]
[1760540787835,1.728,4020.4,4018.4,5.13955265]
[1760540788069,0.2793,4021.1,4018.6,2.4884288]
[1760540788319,0.1764,4021.1,4018.8,1.728]
[1760540788611,0.1764,4021.1,4018.9,3.1207]
[1760540788919,0.1029,4021.6,4019.3,1.728]
[1760540788920,0.1763,4021.6,4019.3,1.728]
[1760540789118,2.48522367,4023.8,4019.3,1.728]
[1760540789119,0.1986,4022.7,4020.0,4.21553789]
[1760540789320,0.1986,4022.7,4020.1,4.79816093]
[1760540789469,2.408417,4022.6,4021.1,2.48682942]
[1760540789670,1.728,4022.4,4020.6,0.4697]
[1760540789881,2.4865263,4021.7,4020.7,2.651]
[1760540790081,0.1749,4021.6,4020.1,0.2283]
[1760540790484,2.3616,4021.1,4019.4,0.698]
[1760540790686,0.6336,4020.9,4019.4,0.698]
[1760540791021,0.1749,4021.6,4019.4,0.698]
[1760540791022,2.48631634,4022.1,4019.5,3.14557871]
[1760540791172,2.48512071,4024.0,4019.4,0.2283]
[1760540791173,2.48551241,4023.4,4020.8,0.2283]
[1760540791373,2.48551241,4023.4,4020.9,0.4697]
[1760540791374,2.718426,4022.9,4020.9,0.4697]
[1760540791573,0.1736,4024.1,4021.0,0.65846943]
[1760540791574,0.2059,4024.0,4021.0,0.65846943]
[1760540791886,0.2059,4024.0,4020.8,11.1379714]
[1760540791887,0.099,4023.9,4022.0,0.2283]
[1760540792086,0.1736,4024.1,4022.1,0.4697]
[1760540792286,0.1736,4024.1,4022.1,0.7123]
[1760540792490,3.407852,4024.0,4022.0,0.2283]
[1760540792797,3.281033,4023.8,4022.0,0.2283]
[1760540793108,3.11882101,4023.8,4022.2,2.48619858]
[1760540793277,3.11893651,4023.6,4022.1,2.48625434]
[1760540793611,2.48569601,4023.1,4022.0,0.2283]
[1760540793813,0.6336,4023.2,4022.0,0.2283]
[1760540794002,0.6336,4023.0,4021.6,0.2283]
[1760540794315,0.6336,4023.4,4022.2,2.4861715]
[1760540794612,0.6,4024.9,4023.2,2.48553816]
[1760540794783,0.0994,4024.6,4023.3,2.48546671]
[1760540794973,2.58413309,4024.6,4023.3,2.48550624]
[1760540795173,2.48478246,4024.5,4023.2,2.48557263]
[1760540795514,2.48478246,4024.5,4023.1,0.2283]
[1760540795515,0.8056,4024.9,4023.4,2.48546005]
[1760540795813,0.6,4024.9,4023.5,3.41720153]
[1760540795997,0.6,4024.9,4023.6,0.4702]
[1760540796175,0.6,4024.9,4023.7,2.649]
[1760540796372,0.6,4024.9,4023.9,2.48514038]
[1760540796613,0.6,4024.9,4023.6,2.95553465]
[1760540796829,0.6,4024.9,4023.6,0.4702]
[1760540797119,0.6,4024.9,4024.6,2.48470568]
[1760540797300,0.6,4024.9,4024.5,0.124]
[1760540797994,0.6,4024.9,4022.9,0.4702]
[1760540797995,4.93790512,4024.8,4022.9,0.4702]
[1760540798195,0.124,4024.1,4023.4,0.124]
[1760540798601,0.124,4024.4,4023.8,0.124]
[1760540798809,0.6,4024.9,4024.4,2.48478379]
[1760540798810,0.601,4024.9,4024.4,2.48478379]
[1760540799022,0.601,4024.9,4024.3,0.2176]
[1760540799210,0.2067,4024.8,4023.8,0.2176]
[1760540799380,0.2067,4024.8,4023.2,0.4702]
[1760540799590,1.728,4024.7,4023.2,0.4702]
[1760540799789,0.2067,4024.8,4023.6,2.48532371]
[1760540800029,0.601,4024.9,4023.7,0.4702]
[1760540800225,0.601,4024.9,4023.2,0.4702]
[1760540800515,0.8077,4024.9,4023.2,0.4702]
[1760540800728,0.6336,4024.4,4021.0,2.48690555]
[1760540800879,0.1001,4024.8,4023.8,2.48515346]
[1760540801086,0.6336,4024.5,4022.8,2.48578388]
[1760540801295,0.2712,4024.4,4022.5,0.4702]
[1760540801500,0.6336,4024.1,4022.6,2.48595435]
[1760540801676,0.6336,4024.2,4022.5,0.4702]
[1760540802093,2.3616,4024.3,4022.1,0.02486263]
[1760540802300,4.84651295,4024.3,4022.7,2.4858433]
[1760540802613,0.6336,4023.7,4022.6,2.48594467]
[1760540802828,2.48551929,4023.4,4022.0,3.18480321]
[1760540802982,2.65845248,4023.6,4021.4,0.4702]
[1760540802983,0.6336,4023.3,4021.4,0.4702]
[1760540803411,0.6336,4022.8,4020.8,0.6878]
[1760540803714,0.6336,4022.6,4020.9,0.4702]
[1760540803903,10.2760714,4023.5,4021.0,0.02486943]
[1760540804101,0.6336,4023.5,4021.4,2.48664729]
[1760540804413,0.8683,4024.0,4021.6,1.728]
[1760540804615,0.6336,4023.9,4021.9,2.48638703]
[1760540804823,0.6336,4023.9,4021.8,1.728]
[1760540804976,0.6336,4023.9,4022.0,2.48632459]
[1760540804977,0.6336,4023.4,4022.0,2.48632459]
[1760540805176,2.48533651,4023.6,4021.5,0.2176]
[1760540805177,6.11328393,4023.9,4022.5,2.4859563]
[1760540805381,3.11875169,4023.9,4022.6,2.4859504]
[1760540805624,0.6336,4023.7,4021.5,0.2176]
[1760540805829,0.6336,4022.6,4021.2,2.647]
[1760540806120,0.1717,4022.7,4021.3,0.02486758]
[1760540806301,0.6336,4022.6,4021.2,0.4702]
[1760540806616,0.6336,4022.6,4021.1,0.2176]
[1760540806617,0.6336,4022.4,4021.1,2.7044476]
[1760540806916,0.1012,4022.5,4021.1,0.2176]
[1760540807116,0.1717,4022.7,4020.8,0.6878]
[1760540807117,1.728,4022.4,4020.8,0.6878]
[1760540807333,0.171,4023.2,4021.2,0.6878]
[1760540807477,0.1025,4023.1,4021.3,0.4702]
[1760540807678,0.6336,4022.9,4021.2,0.2176]
[1760540807880,0.6336,4023.2,4022.0,2.48627232]
[1760540808092,0.6336,4022.8,4021.4,2.647]
[1760540808335,0.6336,4023.0,4021.3,2.48675801]
[1760540808484,0.6336,4023.0,4022.0,2.48627884]
[1760540808822,0.124,4022.0,4021.9,2.4863729]
[1760540809022,0.1025,4023.1,4021.2,0.6878]
[1760540809226,0.124,4022.1,4021.4,0.124]
[1760540809391,2.48546215,4023.4,4021.4,0.124]
[1760540809392,1.8305,4023.7,4022.0,2.48632521]
[1760540809598,0.1025,4023.7,4022.1,0.2176]
[1760540809925,0.124,4022.6,4022.5,2.48601615]
[1760540810094,2.75595006,4024.4,4023.2,2.48557499]
[1760540810417,0.1725,4024.5,4022.6,0.49505954]
[1760540810643,0.124,4023.7,4023.6,2.48533651]
[1760540811008,0.6,4025.6,4024.2,2.48491235]
[1760540811212,0.124,4024.5,4023.6,1.11303966]
[1760540811443,0.124,4024.5,4023.6,0.124]
[1760540811643,0.0997,4025.0,4023.6,0.124]
[1760540811644,0.124,4024.2,4024.1,2.48497587]